[Event "Live Chess"]
[Site "Chess.com"]
[Date "2023.05.21"]
[Round "-"]
[White "Duke_of_Bebington"]
[Black "JanMur7"]
[Result "0-1"]
[WhiteElo "1576"]
[BlackElo "1976"]
[TimeControl "300"]
[EndTime "4:52:42 PDT"]
[Termination "JanMur7 won by resignation"]

1. e4 {[%clk 0:04:57.7]} 1... e5 {[%clk 0:04:58.8]} 2. Nf3 {[%clk 0:04:56.3]}
2... Nc6 {[%clk 0:04:58.1]} 3. Bc4 {[%clk 0:04:55.6]} 3... Bc5 {[%clk
0:04:56.9]} 4. b4 {[%clk 0:04:54.7]} 4... Bxb4 {[%clk 0:04:55.9]} 5. c3 {[%clk
0:04:54.2]} 5... Ba5 {[%clk 0:04:55.5]} 6. d4 {[%clk 0:04:52.9]} 6... exd4
{[%clk 0:04:55.4]} 7. O-O {[%clk 0:04:51.7]} 7... Nf6 {[%clk 0:04:54.9]} 8. e5
{[%clk 0:04:43.7]} 8... d5 {[%clk 0:04:53.8]} 9. exf6 {[%clk 0:04:37.2]} 9...
dxc4 {[%clk 0:04:52.3]} 10. fxg7 {[%clk 0:04:34.8]} 10... Rg8 {[%clk 0:04:51.6]}
11. Nxd4 {[%clk 0:04:29.4]} 11... Nxd4 {[%clk 0:04:50.2]} 12. Qxd4 {[%clk
0:04:24.3]} 12... Qxd4 {[%clk 0:04:46.8]} 13. cxd4 {[%clk 0:04:22.8]} 13... Rxg7
{[%clk 0:04:45.3]} 14. Rd1 {[%clk 0:04:16.4]} 14... c3 {[%clk 0:04:40.3]} 15.
Na3 {[%clk 0:04:10.3]} 15... Bg4 {[%clk 0:04:19.3]} 16. Re1+ {[%clk 0:04:07.7]}
16... Kd7 {[%clk 0:04:17.4]} 17. Nc2 {[%clk 0:04:03.6]} 17... Re8 {[%clk
0:03:44]} 18. Rxe8 {[%clk 0:03:58.8]} 18... Kxe8 {[%clk 0:03:43.9]} 19. Ba3
{[%clk 0:03:55.9]} 19... Bf3 {[%clk 0:03:40.1]} 20. Re1+ {[%clk 0:03:52.2]}
20... Kd7 {[%clk 0:03:37.3]} 21. g3 {[%clk 0:03:50.5]} 21... f5 {[%clk
0:03:28.9]} 22. Rc1 {[%clk 0:03:35.3]} 22... f4 {[%clk 0:03:22.2]} 23. Ne1
{[%clk 0:03:23.3]} 23... Be4 {[%clk 0:03:16.9]} 24. f3 {[%clk 0:03:18.5]} 24...
Bf5 {[%clk 0:03:09.9]} 25. g4 {[%clk 0:03:14.6]} 25... Be6 {[%clk 0:03:08.7]}
26. Rc2 {[%clk 0:03:03.3]} 26... Bb6 {[%clk 0:03:05.1]} 27. Rxc3 {[%clk
0:02:53.2]} 27... Bxd4+ {[%clk 0:03:01.9]} 28. Kh1 {[%clk 0:02:51.6]} 28... Bxc3
{[%clk 0:03:01.8]} 0-1

[Event "Live Chess"]
[Site "Chess.com"]
[Date "2023.05.21"]
[Round "-"]
[White "WilliamofOrange16th"]
[Black "diana21strabt"]
[Result "0-1"]
[WhiteElo "1862"]
[BlackElo "1763"]
[TimeControl "300"]
[EndTime "4:52:47 PDT"]
[Termination "diana21strabt won by resignation"]

1. e4 {[%clk 0:04:57.8]} 1... d5 {[%clk 0:04:59]} 2. exd5 {[%clk 0:04:51.9]}
2... Qxd5 {[%clk 0:04:57.1]} 3. Nf3 {[%clk 0:04:49.2]} 3... Nf6 {[%clk
0:04:55.8]} 4. Nc3 {[%clk 0:04:46.1]} 4... Qa5 {[%clk 0:04:54.3]} 5. Be2 {[%clk
0:04:45.1]} 5... Bg4 {[%clk 0:04:53.1]} 6. h3 {[%clk 0:04:43]} 6... Bh5 {[%clk
0:04:52]} 7. O-O {[%clk 0:04:42.1]} 7... Nc6 {[%clk 0:04:50.8]} 8. g4 {[%clk
0:04:40.9]} 8... Bg6 {[%clk 0:04:49.6]} 9. d4 {[%clk 0:04:39.8]} 9... O-O-O
{[%clk 0:04:48.6]} 10. Bd2 {[%clk 0:04:36.1]} 10... Nxd4 {[%clk 0:04:41.4]} 11.
Nxd4 {[%clk 0:03:38.6]} 11... Rxd4 {[%clk 0:04:39.9]} 12. Qe1 {[%clk 0:03:38.3]}
12... e5 {[%clk 0:04:26.6]} 13. Ne4 {[%clk 0:03:24.4]} 13... Qd5 {[%clk
0:04:17.5]} 14. Nxf6 {[%clk 0:03:20.6]} 14... gxf6 {[%clk 0:04:16.1]} 15. Be3
{[%clk 0:03:18.5]} 15... Rb4 {[%clk 0:04:01.2]} 16. Qc3 {[%clk 0:03:05.7]} 16...
Qc6 {[%clk 0:03:02.1]} 17. Bd2 {[%clk 0:02:40.8]} 17... Qxc3 {[%clk 0:02:50.6]}
18. Bxc3 {[%clk 0:02:40.7]} 18... Rb6 {[%clk 0:02:44.2]} 19. Rac1 {[%clk
0:02:31.4]} 19... Bb4 {[%clk 0:02:39.4]} 20. Bxb4 {[%clk 0:02:27.1]} 20... Rxb4
{[%clk 0:02:38.4]} 21. b3 {[%clk 0:02:23.6]} 21... Rd8 {[%clk 0:02:35.4]} 22. c3
{[%clk 0:02:19.9]} 22... Rb6 {[%clk 0:02:33.2]} 23. Rfd1 {[%clk 0:02:18.5]}
23... Rxd1+ {[%clk 0:02:30.1]} 24. Rxd1 {[%clk 0:02:16.9]} 24... Rd6 {[%clk
0:02:29.5]} 25. Rxd6 {[%clk 0:02:13.1]} 25... cxd6 {[%clk 0:02:28]} 26. f4
{[%clk 0:02:11.2]} 26... Bb1 {[%clk 0:02:25.3]} 27. a3 {[%clk 0:02:09.5]} 27...
Bc2 {[%clk 0:02:23.9]} 28. b4 {[%clk 0:02:08.5]} 28... Kc7 {[%clk 0:02:20.5]}
29. Kf2 {[%clk 0:02:07.5]} 29... f5 {[%clk 0:02:08.6]} 30. Ke3 {[%clk
0:02:03.5]} 30... fxg4 {[%clk 0:02:04.9]} 31. hxg4 {[%clk 0:02:02]} 31... b6
{[%clk 0:01:53.3]} 32. fxe5 {[%clk 0:01:57]} 32... dxe5 {[%clk 0:01:50.7]} 33.
Bc4 {[%clk 0:01:56.9]} 33... f6 {[%clk 0:01:47.5]} 34. Bg8 {[%clk 0:01:55.5]}
34... Kd6 {[%clk 0:01:46.2]} 35. Bf7 {[%clk 0:01:31.4]} 35... Bd1 {[%clk
0:01:44.1]} 36. Bg8 {[%clk 0:01:28.8]} 36... h6 {[%clk 0:01:41.8]} 37. c4 {[%clk
0:01:14.6]} 37... Bxg4 {[%clk 0:01:40.2]} 38. c5+ {[%clk 0:01:12.5]} 38... bxc5
{[%clk 0:01:38.9]} 39. bxc5+ {[%clk 0:01:12.4]} 39... Kxc5 {[%clk 0:01:37.9]}
40. Ke4 {[%clk 0:01:11.9]} 40... h5 {[%clk 0:01:33.7]} 41. Bh7 {[%clk
0:01:04.7]} 41... h4 {[%clk 0:01:31.9]} 42. Bf5 {[%clk 0:01:02.8]} 42... Bxf5+
{[%clk 0:01:29.2]} 43. Kxf5 {[%clk 0:01:02.7]} 43... h3 {[%clk 0:01:27.9]} 0-1

[Event "Live Chess"]
[Site "Chess.com"]
[Date "2023.05.21"]
[Round "-"]
[White "tpm07"]
[Black "whitedjohn"]
[Result "1-0"]
[WhiteElo "1930"]
[BlackElo "1659"]
[TimeControl "300"]
[EndTime "4:52:56 PDT"]
[Termination "tpm07 won by resignation"]

1. d4 {[%clk 0:04:57.4]} 1... Nf6 {[%clk 0:04:59.6]} 2. c4 {[%clk 0:04:56.6]}
2... c5 {[%clk 0:04:59.2]} 3. Nf3 {[%clk 0:04:55]} 3... e6 {[%clk 0:04:58.6]} 4.
Nc3 {[%clk 0:04:53.3]} 4... d6 {[%clk 0:04:54.5]} 5. g3 {[%clk 0:04:49.6]} 5...
Nc6 {[%clk 0:04:52.2]} 6. Bg2 {[%clk 0:04:48.1]} 6... e5 {[%clk 0:04:41.2]} 7.
dxc5 {[%clk 0:04:37]} 7... dxc5 {[%clk 0:04:39.5]} 8. Qxd8+ {[%clk 0:04:36.3]}
8... Kxd8 {[%clk 0:04:38.3]} 9. Bg5 {[%clk 0:04:31.1]} 9... Be7 {[%clk
0:04:35.9]} 10. O-O-O+ {[%clk 0:04:28.7]} 10... Ke8 {[%clk 0:04:24.8]} 11. e3
{[%clk 0:04:25.9]} 11... a6 {[%clk 0:04:21.2]} 12. Bxf6 {[%clk 0:04:21.3]} 12...
gxf6 {[%clk 0:04:17.1]} 13. Nd5 {[%clk 0:04:20]} 13... Bd8 {[%clk 0:04:07.7]}
14. h3 {[%clk 0:04:08.5]} 14... Be6 {[%clk 0:04:05.8]} 15. Ng1 {[%clk
0:03:56.3]} 15... Nb4 {[%clk 0:04:01.6]} 16. Nxb4 {[%clk 0:03:46.9]} 16... cxb4
{[%clk 0:04:00.6]} 17. b3 {[%clk 0:03:46]} 17... Rb8 {[%clk 0:03:57.5]} 18. Ne2
{[%clk 0:03:42.9]} 18... Be7 {[%clk 0:03:53.4]} 19. g4 {[%clk 0:03:39.2]} 19...
b5 {[%clk 0:03:51.5]} 20. cxb5 {[%clk 0:03:35.9]} 20... Rxb5 {[%clk 0:03:47.2]}
21. Bc6+ {[%clk 0:03:34.2]} 21... Bd7 {[%clk 0:03:44.8]} 22. Bxd7+ {[%clk
0:03:32.8]} 1-0

[Event "Live Chess"]
[Site "Chess.com"]
[Date "2023.05.21"]
[Round "-"]
[White "LiamClery2020"]
[Black "davigator"]
[Result "0-1"]
[WhiteElo "2001"]
[BlackElo "2330"]
[TimeControl "300"]
[EndTime "4:52:59 PDT"]
[Termination "davigator won by resignation"]

1. e4 {[%clk 0:04:56]} 1... c5 {[%clk 0:04:58.6]} 2. Nf3 {[%clk 0:04:55]} 2...
Nc6 {[%clk 0:04:56.6]} 3. Bb5 {[%clk 0:04:53.9]} 3... g6 {[%clk 0:04:53.7]} 4.
Bxc6 {[%clk 0:04:50.6]} 4... dxc6 {[%clk 0:04:50.3]} 5. O-O {[%clk 0:04:50.5]}
5... Bg7 {[%clk 0:04:48.7]} 6. Re1 {[%clk 0:04:49.9]} 6... e5 {[%clk 0:04:47.3]}
7. c3 {[%clk 0:04:49.3]} 7... Bg4 {[%clk 0:04:41.6]} 8. h3 {[%clk 0:04:48.1]}
8... Bxf3 {[%clk 0:04:40.6]} 9. Qxf3 {[%clk 0:04:48]} 9... Nf6 {[%clk
0:04:39.2]} 10. d3 {[%clk 0:04:46.9]} 10... O-O {[%clk 0:04:37.4]} 11. Bg5
{[%clk 0:04:46.2]} 11... Qd6 {[%clk 0:04:35.6]} 12. Na3 {[%clk 0:04:45.2]} 12...
h6 {[%clk 0:04:30.9]} 13. Nc4 {[%clk 0:04:44.1]} 13... Qe6 {[%clk 0:04:30.5]}
14. Bh4 {[%clk 0:04:42.3]} 14... b6 {[%clk 0:04:27.3]} 15. Bg3 {[%clk
0:04:40.7]} 15... Nd7 {[%clk 0:04:25.9]} 16. Rad1 {[%clk 0:04:39]} 16... Rac8
{[%clk 0:04:13.6]} 17. Ne3 {[%clk 0:04:27.1]} 17... Qxa2 {[%clk 0:04:04.4]} 18.
Qe2 {[%clk 0:04:18.8]} 18... Qe6 {[%clk 0:03:59]} 19. Ra1 {[%clk 0:04:16]} 19...
a5 {[%clk 0:03:57.3]} 20. f4 {[%clk 0:04:14.9]} 20... exf4 {[%clk 0:03:55.7]}
21. Bxf4 {[%clk 0:04:14.5]} 21... Rfe8 {[%clk 0:03:52.8]} 22. Rad1 {[%clk
0:04:08.7]} 22... Nf6 {[%clk 0:03:35.3]} 23. Nc4 {[%clk 0:04:06.6]} 23... Nd7
{[%clk 0:03:21]} 24. Nd6 {[%clk 0:04:05.1]} 24... Rcd8 {[%clk 0:03:19]} 25. Nxe8
{[%clk 0:04:04.1]} 25... Rxe8 {[%clk 0:03:18.8]} 26. Qe3 {[%clk 0:03:55]} 26...
Kh7 {[%clk 0:03:16.6]} 27. Bg3 {[%clk 0:03:43.7]} 27... Ne5 {[%clk 0:03:13.4]}
28. Bxe5 {[%clk 0:03:37.3]} 28... Bxe5 {[%clk 0:03:09.1]} 29. d4 {[%clk
0:03:34.6]} 29... cxd4 {[%clk 0:03:07.2]} 30. cxd4 {[%clk 0:03:33.7]} 30... Bc7
{[%clk 0:03:06.6]} 31. Rf1 {[%clk 0:03:27.2]} 31... Rd8 {[%clk 0:03:01.7]} 32.
Qf3 {[%clk 0:03:24]} 32... Rd7 {[%clk 0:03:00.9]} 33. d5 {[%clk 0:03:15.6]}
33... cxd5 {[%clk 0:02:56.9]} 34. exd5 {[%clk 0:03:15.5]} 34... Qd6 {[%clk
0:02:53.9]} 35. g3 {[%clk 0:03:10.8]} 35... h5 {[%clk 0:02:51.2]} 36. Kg2 {[%clk
0:03:09.8]} 36... b5 {[%clk 0:02:48.7]} 37. h4 {[%clk 0:03:07.8]} 37... b4
{[%clk 0:02:47.1]} 38. Rfe1 {[%clk 0:03:04.5]} 38... Kg7 {[%clk 0:02:43.6]} 39.
Re8 {[%clk 0:02:47.9]} 39... Bb6 {[%clk 0:02:23.1]} 40. Rc8 {[%clk 0:02:26.5]}
40... Qe5 {[%clk 0:02:03]} 41. Rd2 {[%clk 0:02:11.6]} 41... Bc7 {[%clk
0:01:55.2]} 42. Re2 {[%clk 0:01:58.9]} 42... Qd4 {[%clk 0:01:51.8]} 43. Ree8
{[%clk 0:01:41.8]} 43... Qxb2+ {[%clk 0:01:49.5]} 44. Kh3 {[%clk 0:01:41]} 44...
Be5 {[%clk 0:01:49.1]} 45. Rg8+ {[%clk 0:01:28.5]} 45... Kh7 {[%clk 0:01:47.7]}
46. Rcd8 {[%clk 0:01:10.2]} 46... Bf6 {[%clk 0:01:22.2]} 47. Rh8+ {[%clk
0:00:52.1]} 47... Bxh8 {[%clk 0:01:14.4]} 48. Rxd7 {[%clk 0:00:51.5]} 48... Bg7
{[%clk 0:01:06.3]} 49. Qxf7 {[%clk 0:00:47.1]} 49... b3 {[%clk 0:01:01.1]} 50.
Rd8 {[%clk 0:00:42.5]} 50... Qb1 {[%clk 0:00:48.3]} 51. Qf3 {[%clk 0:00:28.1]}
51... b2 {[%clk 0:00:43.9]} 52. d6 {[%clk 0:00:26.3]} 52... Qc2 {[%clk
0:00:39.2]} 53. d7 {[%clk 0:00:15.9]} 53... b1=Q {[%clk 0:00:34.5]} 54. Rh8+
{[%clk 0:00:15.4]} 54... Bxh8 {[%clk 0:00:31.6]} 55. d8=Q {[%clk 0:00:14.8]}
55... Qf5+ {[%clk 0:00:29.7]} 56. Qxf5 {[%clk 0:00:13]} 56... Qxf5+ {[%clk
0:00:29.2]} 57. Kg2 {[%clk 0:00:12.5]} 57... Bg7 {[%clk 0:00:27.1]} 58. Qc7
{[%clk 0:00:09.4]} 58... a4 {[%clk 0:00:22.8]} 59. Qc1 {[%clk 0:00:08.1]} 59...
Qe4+ {[%clk 0:00:20]} 60. Kh3 {[%clk 0:00:07.4]} 60... Qe6+ {[%clk 0:00:18.9]}
61. Kh2 {[%clk 0:00:07]} 61... Qd6 {[%clk 0:00:16.5]} 62. Kh1 {[%clk 0:00:05.9]}
62... a3 {[%clk 0:00:15.5]} 63. Qd2 {[%clk 0:00:03.7]} 63... Qxd2 {[%clk
0:00:13.3]} 64. g4 {[%clk 0:00:02.7]} 64... a2 {[%clk 0:00:12]} 0-1

[Event "Live Chess"]
[Site "Chess.com"]
[Date "2023.05.21"]
[Round "-"]
[White "wot-not"]
[Black "ViktorTheCoolBoy"]
[Result "0-1"]
[WhiteElo "1542"]
[BlackElo "2477"]
[TimeControl "300"]
[EndTime "4:53:05 PDT"]
[Termination "ViktorTheCoolBoy won by resignation"]

1. d4 {[%clk 0:04:57.8]} 1... g6 {[%clk 0:04:56.9]} 2. c4 {[%clk 0:04:56.8]}
2... Bg7 {[%clk 0:04:55.9]} 3. Nc3 {[%clk 0:04:55.3]} 3... d6 {[%clk 0:04:55.2]}
4. e3 {[%clk 0:04:49.7]} 4... e5 {[%clk 0:04:48.2]} 5. dxe5 {[%clk 0:04:44.2]}
5... dxe5 {[%clk 0:04:46.7]} 6. Qxd8+ {[%clk 0:04:42.5]} 6... Kxd8 {[%clk
0:04:46.6]} 7. Nf3 {[%clk 0:04:35.4]} 7... c6 {[%clk 0:04:43.9]} 8. Ng5 {[%clk
0:03:58.3]} 8... Nh6 {[%clk 0:04:41.8]} 9. Be2 {[%clk 0:03:36.6]} 9... f6 {[%clk
0:04:39.6]} 10. Nf3 {[%clk 0:03:30.1]} 10... Be6 {[%clk 0:04:37]} 11. O-O {[%clk
0:03:21.2]} 11... Nd7 {[%clk 0:04:34.6]} 12. b4 {[%clk 0:03:09.8]} 12... a5
{[%clk 0:04:31.6]} 13. b5 {[%clk 0:03:01.9]} 13... Kc7 {[%clk 0:04:28.9]} 14.
bxc6 {[%clk 0:02:49.8]} 14... bxc6 {[%clk 0:04:28.8]} 15. Ba3 {[%clk 0:02:36.7]}
15... Bf8 {[%clk 0:04:25.7]} 16. Bxf8 {[%clk 0:02:34.5]} 16... Rhxf8 {[%clk
0:04:25.6]} 17. Rfd1 {[%clk 0:02:22.1]} 17... Rfb8 {[%clk 0:04:19.6]} 18. Rab1
{[%clk 0:02:18]} 18... Nf7 {[%clk 0:04:17.8]} 19. Rxb8 {[%clk 0:02:15.5]} 19...
Rxb8 {[%clk 0:04:16.2]} 20. Rb1 {[%clk 0:02:15.1]} 20... Rxb1+ {[%clk
0:04:09.3]} 21. Nxb1 {[%clk 0:02:14]} 21... Nd6 {[%clk 0:04:08.8]} 22. Na3
{[%clk 0:02:10.2]} 22... Kb6 {[%clk 0:04:07.1]} 23. Nd2 {[%clk 0:01:52]} 23...
Kc5 {[%clk 0:04:02]} 24. f4 {[%clk 0:01:45.4]} 24... Kb4 {[%clk 0:03:58.7]} 25.
Nc2+ {[%clk 0:01:41.9]} 25... Kc3 {[%clk 0:03:57.6]} 26. fxe5 {[%clk 0:01:32.2]}
26... fxe5 {[%clk 0:03:55.9]} 27. c5 {[%clk 0:01:12.7]} 27... Nxc5 {[%clk
0:03:53.2]} 0-1

[Event "Live Chess"]
[Site "Chess.com"]
[Date "2023.05.21"]
[Round "-"]
[White "zdanevych"]
[Black "YrrriKharkiv"]
[Result "0-1"]
[WhiteElo "1549"]
[BlackElo "2068"]
[TimeControl "300"]
[EndTime "4:53:10 PDT"]
[Termination "YrrriKharkiv won by resignation"]

1. d4 {[%clk 0:04:59]} 1... Nf6 {[%clk 0:04:55.5]} 2. c4 {[%clk 0:04:58.1]} 2...
c5 {[%clk 0:04:54.6]} 3. d5 {[%clk 0:04:56.9]} 3... b5 {[%clk 0:04:53.4]} 4. Nc3
{[%clk 0:04:53.5]} 4... b4 {[%clk 0:04:52.1]} 5. Nb1 {[%clk 0:04:50.9]} 5... d6
{[%clk 0:04:48.9]} 6. a3 {[%clk 0:04:46.4]} 6... b3 {[%clk 0:04:46.5]} 7. Qxb3
{[%clk 0:04:44.3]} 7... g6 {[%clk 0:04:46.2]} 8. Nc3 {[%clk 0:04:36.1]} 8... Bg7
{[%clk 0:04:44.2]} 9. h3 {[%clk 0:04:31.7]} 9... Nbd7 {[%clk 0:04:42.6]} 10. Bg5
{[%clk 0:04:29]} 10... Rb8 {[%clk 0:04:37.1]} 11. Qc2 {[%clk 0:04:26.7]} 11...
Qb6 {[%clk 0:04:33.5]} 12. Rb1 {[%clk 0:04:20]} 12... Qa5 {[%clk 0:04:14.9]} 13.
Bd2 {[%clk 0:04:14]} 13... Qb6 {[%clk 0:04:12]} 14. e4 {[%clk 0:04:08.1]} 14...
O-O {[%clk 0:04:07.9]} 15. Nf3 {[%clk 0:04:06.6]} 15... Ba6 {[%clk 0:04:03.4]}
16. Bd3 {[%clk 0:03:58.6]} 16... Qc7 {[%clk 0:03:49]} 17. O-O {[%clk 0:03:57.4]}
17... Nb6 {[%clk 0:03:46.6]} 18. b3 {[%clk 0:03:48.4]} 18... Nfd7 {[%clk
0:03:39.1]} 19. Ne2 {[%clk 0:03:41.6]} 19... e6 {[%clk 0:03:25.8]} 20. dxe6
{[%clk 0:03:34.9]} 20... fxe6 {[%clk 0:03:23.6]} 21. Ng5 {[%clk 0:03:23]} 21...
Rfe8 {[%clk 0:03:21.5]} 22. Nf4 {[%clk 0:03:17.1]} 22... Nf8 {[%clk 0:03:18.9]}
23. Bc3 {[%clk 0:03:08.7]} 23... e5 {[%clk 0:03:16.9]} 24. Nd5 {[%clk
0:03:08.2]} 24... Nxd5 {[%clk 0:03:15.6]} 25. exd5 {[%clk 0:03:02.5]} 25... Bc8
{[%clk 0:03:01.8]} 26. Ne4 {[%clk 0:03:00]} 26... Nd7 {[%clk 0:02:51.3]} 27. Bd2
{[%clk 0:02:51]} 27... Rf8 {[%clk 0:02:46.9]} 28. Qc1 {[%clk 0:02:47.7]} 28...
Nf6 {[%clk 0:02:41.7]} 29. Bh6 {[%clk 0:02:44.3]} 29... Rf7 {[%clk 0:02:35]} 30.
Bxg7 {[%clk 0:02:43]} 30... Kxg7 {[%clk 0:02:31.5]} 31. Ng5 {[%clk 0:02:36.6]}
31... Rf8 {[%clk 0:02:28]} 32. Ne4 {[%clk 0:02:25.4]} 32... Qe7 {[%clk 0:02:24]}
33. Qg5 {[%clk 0:02:21]} 33... a5 {[%clk 0:02:14]} 34. Nxf6 {[%clk 0:02:17]}
34... Qxf6 {[%clk 0:02:12.7]} 35. Qxg6+ {[%clk 0:02:15]} 35... hxg6 {[%clk
0:02:10.5]} 0-1

[Event "Live Chess"]
[Site "Chess.com"]
[Date "2023.05.21"]
[Round "-"]
[White "hturner40"]
[Black "CheckThis4"]
[Result "0-1"]
[WhiteElo "1773"]
[BlackElo "2508"]
[TimeControl "300"]
[EndTime "4:53:18 PDT"]
[Termination "CheckThis4 won by resignation"]

1. Nf3 {[%clk 0:04:56.6]} 1... c5 {[%clk 0:04:57.5]} 2. g3 {[%clk 0:04:55.5]}
2... Nc6 {[%clk 0:04:55.4]} 3. Bg2 {[%clk 0:04:54.4]} 3... e5 {[%clk 0:04:54.4]}
4. e4 {[%clk 0:04:49.6]} 4... Nf6 {[%clk 0:04:51.6]} 5. O-O {[%clk 0:04:47.4]}
5... Be7 {[%clk 0:04:42.1]} 6. d3 {[%clk 0:04:40.3]} 6... O-O {[%clk 0:04:36.9]}
7. c3 {[%clk 0:04:38]} 7... d5 {[%clk 0:04:32.6]} 8. Qc2 {[%clk 0:04:36.6]} 8...
c4 {[%clk 0:04:17.9]} 9. exd5 {[%clk 0:04:32.6]} 9... cxd3 {[%clk 0:04:08.7]}
10. Qxd3 {[%clk 0:04:30.5]} 10... e4 {[%clk 0:04:07.9]} 11. Qb5 {[%clk
0:03:58.2]} 11... exf3 {[%clk 0:04:05.4]} 12. dxc6 {[%clk 0:03:50.4]} 12... fxg2
{[%clk 0:04:00.9]} 13. Kxg2 {[%clk 0:03:47.7]} 13... bxc6 {[%clk 0:03:55.4]} 14.
Qxc6 {[%clk 0:03:45.1]} 14... Rb8 {[%clk 0:03:51.9]} 15. Qa4 {[%clk 0:03:04.6]}
15... Qd5+ {[%clk 0:03:46]} 16. f3 {[%clk 0:03:00.8]} 16... Qd3 {[%clk
0:03:33.9]} 17. Bf4 {[%clk 0:02:45.2]} 17... Bh3+ {[%clk 0:03:29.7]} 18. Kxh3
{[%clk 0:02:26.6]} 18... Qxf1+ {[%clk 0:03:29.6]} 19. Kh4 {[%clk 0:02:24.8]}
19... Ne4+ {[%clk 0:03:23.7]} 0-1

[Event "Live Chess"]
[Site "Chess.com"]
[Date "2023.05.21"]
[Round "-"]
[White "Ian-Morley"]
[Black "stevefairhurst"]
[Result "1-0"]
[WhiteElo "1068"]
[BlackElo "584"]
[TimeControl "300"]
[EndTime "4:53:27 PDT"]
[Termination "Ian-Morley won by resignation"]

1. d4 {[%clk 0:04:58]} 1... e5 {[%clk 0:04:59.6]} 2. e4 {[%clk 0:04:57.3]} 2...
exd4 {[%clk 0:04:58.3]} 3. Qxd4 {[%clk 0:04:56.5]} 3... d6 {[%clk 0:04:56.3]} 4.
b3 {[%clk 0:04:54.1]} 4... Nf6 {[%clk 0:04:54.9]} 5. c4 {[%clk 0:04:51.9]} 5...
Nc6 {[%clk 0:04:52.4]} 6. Qe3 {[%clk 0:04:47.9]} 6... Bd7 {[%clk 0:04:48.5]} 7.
Bb2 {[%clk 0:04:45.2]} 7... Qe7 {[%clk 0:04:46]} 8. Bxf6 {[%clk 0:04:43.3]} 8...
Qxf6 {[%clk 0:04:40.2]} 9. Nd2 {[%clk 0:04:41.7]} 9... Qxa1+ {[%clk 0:04:37.7]}
10. Ke2 {[%clk 0:04:40.3]} 10... Qxa2 {[%clk 0:04:31.5]} 11. f4 {[%clk
0:04:38.3]} 11... Bg4+ {[%clk 0:04:26.4]} 12. Nf3 {[%clk 0:04:36.2]} 12... Nb4
{[%clk 0:04:12.7]} 13. h3 {[%clk 0:04:34.3]} 13... Bxf3+ {[%clk 0:04:06.6]} 14.
gxf3 {[%clk 0:04:33.1]} 14... Nc2 {[%clk 0:04:03.6]} 15. Qd3 {[%clk 0:04:28.9]}
15... Nb4 {[%clk 0:03:58.7]} 16. Qc3 {[%clk 0:04:22.7]} 16... Nc2 {[%clk
0:03:45.8]} 17. h4 {[%clk 0:04:18.3]} 17... Qb1 {[%clk 0:03:44.2]} 18. Kd3
{[%clk 0:04:08.5]} 18... Rd8 {[%clk 0:03:36.5]} 19. Bg2 {[%clk 0:04:06.6]} 19...
c6 {[%clk 0:03:34]} 20. Rxb1 {[%clk 0:04:04.1]} 20... d5 {[%clk 0:03:32.3]} 21.
exd5 {[%clk 0:04:02.2]} 21... cxd5 {[%clk 0:03:31.3]} 22. Kxc2 {[%clk
0:04:01.4]} 22... dxc4 {[%clk 0:03:29.4]} 23. Qxc4 {[%clk 0:03:54.6]} 23... Ke7
{[%clk 0:03:27.4]} 24. Qe4+ {[%clk 0:03:49.6]} 24... Kd7 {[%clk 0:03:25.5]} 25.
Rd1 {[%clk 0:03:47.9]} 25... g6 {[%clk 0:03:22.6]} 26. Nc4+ {[%clk 0:03:46.3]}
26... Kc7 {[%clk 0:03:17.2]} 27. Rxd8 {[%clk 0:03:39]} 27... Bb4 {[%clk
0:03:12.4]} 28. Rxh8 {[%clk 0:03:35.8]} 1-0

[Event "Live Chess"]
[Site "Chess.com"]
[Date "2023.05.21"]
[Round "-"]
[White "srichess4u"]
[Black "Chesscoach_Golichenko"]
[Result "0-1"]
[WhiteElo "652"]
[BlackElo "2612"]
[TimeControl "300"]
[EndTime "4:53:30 PDT"]
[Termination "Chesscoach_Golichenko won by resignation"]

1. e4 {[%clk 0:04:57.9]} 1... Nf6 {[%clk 0:04:58.4]} 2. Nc3 {[%clk 0:04:55]}
2... e5 {[%clk 0:04:56.6]} 3. d3 {[%clk 0:04:51.8]} 3... d5 {[%clk 0:04:54.8]}
4. exd5 {[%clk 0:04:49.2]} 4... Nxd5 {[%clk 0:04:52.7]} 5. Nxd5 {[%clk
0:04:46.3]} 5... Qxd5 {[%clk 0:04:51.2]} 6. c4 {[%clk 0:04:39.5]} 6... Qd8
{[%clk 0:04:45.9]} 7. Bg5 {[%clk 0:04:29.1]} 7... Qxg5 {[%clk 0:04:41.7]} 8. Nf3
{[%clk 0:04:26.1]} 8... Qf6 {[%clk 0:04:38.9]} 9. Qa4+ {[%clk 0:04:20.5]} 9...
Nc6 {[%clk 0:04:36.4]} 10. O-O-O {[%clk 0:04:14.5]} 10... Bd7 {[%clk 0:04:33.8]}
11. d4 {[%clk 0:04:10.4]} 11... exd4 {[%clk 0:04:28.5]} 12. b4 {[%clk
0:03:58.5]} 12... Bxb4 {[%clk 0:04:23.5]} 13. a3 {[%clk 0:03:52.1]} 13... Bc3
{[%clk 0:04:20.8]} 14. Rd3 {[%clk 0:03:45.5]} 14... Ne5 {[%clk 0:04:15]} 15.
Nxe5 {[%clk 0:03:40.2]} 15... Bxa4 {[%clk 0:04:10.7]} 16. Rxc3 {[%clk
0:03:33.6]} 16... dxc3 {[%clk 0:04:08.6]} 0-1

[Event "Live Chess"]
[Site "Chess.com"]
[Date "2023.05.21"]
[Round "-"]
[White "manthanit"]
[Black "yeetpizza74"]
[Result "1-0"]
[WhiteElo "1095"]
[BlackElo "497"]
[TimeControl "300"]
[EndTime "4:53:33 PDT"]
[Termination "manthanit won by checkmate"]

1. e4 {[%clk 0:04:57.2]} 1... c6 {[%clk 0:04:58.8]} 2. g3 {[%clk 0:04:55.6]}
2... d5 {[%clk 0:04:56]} 3. Bg2 {[%clk 0:04:55]} 3... Nf6 {[%clk 0:04:53.7]} 4.
exd5 {[%clk 0:04:54.1]} 4... cxd5 {[%clk 0:04:52.6]} 5. d4 {[%clk 0:04:50.7]}
5... Nc6 {[%clk 0:04:51.2]} 6. h3 {[%clk 0:04:48]} 6... e5 {[%clk 0:04:50]} 7.
dxe5 {[%clk 0:04:43.9]} 7... Nxe5 {[%clk 0:04:49]} 8. Nc3 {[%clk 0:04:39.8]}
8... Be6 {[%clk 0:04:45]} 9. Bg5 {[%clk 0:04:36.4]} 9... Bb4 {[%clk 0:04:34.5]}
10. Nf3 {[%clk 0:04:31.4]} 10... O-O {[%clk 0:04:27.2]} 11. O-O {[%clk
0:04:30.1]} 11... Nxf3+ {[%clk 0:04:24.8]} 12. Bxf3 {[%clk 0:04:26.6]} 12...
Bxc3 {[%clk 0:04:16.7]} 13. bxc3 {[%clk 0:04:25.4]} 13... Rc8 {[%clk 0:03:57.8]}
14. Rb1 {[%clk 0:04:22.1]} 14... Rxc3 {[%clk 0:03:54.2]} 15. Rxb7 {[%clk
0:04:14.4]} 15... Ne4 {[%clk 0:03:44.3]} 16. Bxd8 {[%clk 0:04:05.3]} 16... Bxh3
{[%clk 0:03:33.4]} 17. Bxe4 {[%clk 0:04:03.5]} 17... Bxf1 {[%clk 0:03:29.9]} 18.
Kxf1 {[%clk 0:04:02.7]} 18... Rxd8 {[%clk 0:03:28.1]} 19. Bxd5 {[%clk
0:04:01.7]} 19... Rc5 {[%clk 0:03:22.9]} 20. Bxf7+ {[%clk 0:04:00.3]} 20... Kf8
{[%clk 0:03:20.8]} 21. Qxd8# {[%clk 0:03:59.6]} 1-0